[Event "Early-Titled-Tuesday-Blitz-October-24-2023"]
[Site "Chess.com"]
[Date "2023.10.24"]
[Round "6"]
[White "Rud_Makarian"]
[Black "alexrustemov"]
[Result "1-0"]
[WhiteElo "2968"]
[BlackElo "2773"]
[TimeControl "180+1"]
[EndTime "9:07:22 PDT"]
[Termination "Rud_Makarian won on time"]

1. Nf3 {[%clk 0:03:00.9]} 1... d5 {[%clk 0:03:00]} 2. c4 {[%clk 0:02:58.2]} 2...
c6 {[%clk 0:02:58.9]} 3. d4 {[%clk 0:02:57.9]} 3... Nf6 {[%clk 0:02:58.7]} 4.
Nc3 {[%clk 0:02:57.8]} 4... a6 {[%clk 0:02:58.9]} 5. g3 {[%clk 0:02:54.1]} 5...
dxc4 {[%clk 0:02:55.5]} 6. Bg2 {[%clk 0:02:53.4]} 6... b5 {[%clk 0:02:55.2]} 7.
Ne5 {[%clk 0:02:53.1]} 7... Bb7 {[%clk 0:02:52.9]} 8. O-O {[%clk 0:02:53]} 8...
e6 {[%clk 0:02:51.8]} 9. b3 {[%clk 0:02:53.5]} 9... cxb3 {[%clk 0:02:51.2]} 10.
Qxb3 {[%clk 0:02:52.2]} 10... Be7 {[%clk 0:02:48.4]} 11. Rd1 {[%clk 0:02:51.8]}
11... O-O {[%clk 0:02:48]} 12. Ne4 {[%clk 0:02:52.5]} 12... Nbd7 {[%clk
0:02:45.7]} 13. Ba3 {[%clk 0:02:46.5]} 13... Nxe4 {[%clk 0:02:30.1]} 14. Bxe4
{[%clk 0:02:47.4]} 14... Bxa3 {[%clk 0:02:28.6]} 15. Qxa3 {[%clk 0:02:46.9]}
15... Nxe5 {[%clk 0:02:26.5]} 16. dxe5 {[%clk 0:02:46.8]} 16... Qc7 {[%clk
0:02:26.6]} 17. Qc5 {[%clk 0:02:44.9]} 17... Rfd8 {[%clk 0:02:14.4]} 18. Rd6
{[%clk 0:02:44.3]} 18... h6 {[%clk 0:01:55.7]} 19. Rad1 {[%clk 0:02:43.7]} 19...
a5 {[%clk 0:01:44.8]} 20. a3 {[%clk 0:02:36.6]} 20... Rxd6 {[%clk 0:01:09.5]}
21. exd6 {[%clk 0:02:34.6]} 21... Qd7 {[%clk 0:01:09.2]} 22. h4 {[%clk 0:02:31]}
22... Rb8 {[%clk 0:01:07.2]} 23. Qb6 {[%clk 0:02:18.8]} 23... Qd8 {[%clk
0:00:59.1]} 24. Qc5 {[%clk 0:02:15.7]} 24... Qd7 {[%clk 0:00:58.6]} 25. Kh2
{[%clk 0:02:11.2]} 25... Ba8 {[%clk 0:00:57]} 26. h5 {[%clk 0:01:51.4]} 26... b4
{[%clk 0:00:54.8]} 27. Qxa5 {[%clk 0:01:48.9]} 27... b3 {[%clk 0:00:47.2]} 28.
Qc7 {[%clk 0:01:24.3]} 28... Rd8 {[%clk 0:00:43.1]} 29. Qxd7 {[%clk 0:01:21.6]}
29... Rxd7 {[%clk 0:00:43.3]} 30. Rd3 {[%clk 0:01:10]} 30... f5 {[%clk
0:00:41.7]} 31. Rxb3 {[%clk 0:01:08.6]} 31... fxe4 {[%clk 0:00:38.7]} 32. Rb8+
{[%clk 0:01:08]} 32... Kf7 {[%clk 0:00:39.3]} 33. Rxa8 {[%clk 0:01:08.7]} 33...
Rxd6 {[%clk 0:00:39.8]} 34. e3 {[%clk 0:00:54.1]} 34... Rd2 {[%clk 0:00:38.1]}
35. Kg2 {[%clk 0:00:53.8]} 35... Ra2 {[%clk 0:00:37.8]} 36. Ra4 {[%clk
0:00:47.2]} 36... Kf6 {[%clk 0:00:34.2]} 37. g4 {[%clk 0:00:46.2]} 37... Ke5
{[%clk 0:00:33.7]} 38. Ra5+ {[%clk 0:00:41.1]} 38... Kf6 {[%clk 0:00:33.8]} 39.
Kg3 {[%clk 0:00:39.7]} 39... c5 {[%clk 0:00:31.7]} 40. Rxc5 {[%clk 0:00:38.4]}
40... Rxa3 {[%clk 0:00:31.5]} 41. Rc4 {[%clk 0:00:38]} 41... Ke5 {[%clk
0:00:31.5]} 42. Rc8 {[%clk 0:00:36]} 42... Ra7 {[%clk 0:00:29.7]} 43. Rf8 {[%clk
0:00:35.1]} 43... Rb7 {[%clk 0:00:28.3]} 44. Rf4 {[%clk 0:00:31.3]} 44... Ra7
{[%clk 0:00:26]} 45. Rf8 {[%clk 0:00:30.4]} 45... Rb7 {[%clk 0:00:25.8]} 46. Kh4
{[%clk 0:00:28.4]} 46... Ra7 {[%clk 0:00:22.2]} 47. Rb8 {[%clk 0:00:15.8]} 47...
Rf7 {[%clk 0:00:20.5]} 48. Rb5+ {[%clk 0:00:13.2]} 48... Kd6 {[%clk 0:00:20]}
49. Kg3 {[%clk 0:00:13.3]} 49... Rf3+ {[%clk 0:00:18.9]} 50. Kg2 {[%clk
0:00:13.9]} 50... Rf7 {[%clk 0:00:19.1]} 51. Ra5 {[%clk 0:00:14.1]} 51... Rb7
{[%clk 0:00:16.6]} 52. Kg3 {[%clk 0:00:08.6]} 52... Rf7 {[%clk 0:00:16.7]} 53.
Ra4 {[%clk 0:00:06.5]} 53... Ke5 {[%clk 0:00:16.5]} 54. Ra6 {[%clk 0:00:05.8]}
54... Rf3+ {[%clk 0:00:15.8]} 55. Kg2 {[%clk 0:00:06.2]} 55... Rf7 {[%clk
0:00:16.5]} 56. Rb6 {[%clk 0:00:06.4]} 56... Kf6 {[%clk 0:00:15.8]} 57. Rb5
{[%clk 0:00:05.8]} 57... Ra7 {[%clk 0:00:14.3]} 58. Kg3 {[%clk 0:00:06.4]} 58...
Ra1 {[%clk 0:00:12.8]} 59. Rb4 {[%clk 0:00:05.2]} 59... Rg1+ {[%clk 0:00:09.3]}
60. Kh3 {[%clk 0:00:04.6]} 60... Ra1 {[%clk 0:00:09.3]} 61. Rxe4 {[%clk
0:00:04]} 61... Ra7 {[%clk 0:00:09.8]} 62. Kg3 {[%clk 0:00:04.4]} 62... Kf7
{[%clk 0:00:10.4]} 63. Rb4 {[%clk 0:00:03.7]} 63... Kf6 {[%clk 0:00:10.8]} 64.
Rf4+ {[%clk 0:00:04.2]} 64... Ke7 {[%clk 0:00:11]} 65. Rb4 {[%clk 0:00:04.7]}
65... Kf6 {[%clk 0:00:11.4]} 66. Rc4 {[%clk 0:00:05.4]} 66... Kf7 {[%clk
0:00:11.8]} 67. f4 {[%clk 0:00:05.4]} 67... Kf6 {[%clk 0:00:12.1]} 68. Rc5
{[%clk 0:00:05.4]} 68... Kf7 {[%clk 0:00:12.5]} 69. g5 {[%clk 0:00:05.6]} 69...
Ke7 {[%clk 0:00:09]} 70. g6 {[%clk 0:00:04.8]} 70... Kf6 {[%clk 0:00:08.4]} 71.
Kf3 {[%clk 0:00:04.3]} 71... Rb7 {[%clk 0:00:08.1]} 72. Rc8 {[%clk 0:00:03.7]}
72... Ke7 {[%clk 0:00:02.2]} 73. Rg8 {[%clk 0:00:03.3]} 73... Kd6 {[%clk
0:00:02.2]} 74. Rf8 {[%clk 0:00:03.5]} 74... Ra7 {[%clk 0:00:01.9]} 75. Rf7
{[%clk 0:00:03.9]} 75... Rxf7 {[%clk 0:00:01.9]} 76. gxf7 {[%clk 0:00:04.6]}
76... Ke7 {[%clk 0:00:02.8]} 77. f5 {[%clk 0:00:02.3]} 77... Kxf7 {[%clk
0:00:02.8]} 78. Kf4 {[%clk 0:00:02.2]} 78... exf5 {[%clk 0:00:01.9]} 79. Kxf5
{[%clk 0:00:02.4]} 79... Ke7 {[%clk 0:00:02.4]} 80. Kg6 {[%clk 0:00:02.7]} 80...
Kf8 {[%clk 0:00:02.4]} 81. e4 {[%clk 0:00:03.3]} 81... Kg8 {[%clk 0:00:03]} 82.
e5 {[%clk 0:00:03.2]} 82... Kf8 {[%clk 0:00:02.7]} 83. e6 {[%clk 0:00:03.9]}
83... Ke7 {[%clk 0:00:01.6]} 84. Kf5 {[%clk 0:00:02.2]} 84... Ke8 {[%clk
0:00:01.2]} 85. Ke5 {[%clk 0:00:02.6]} 85... Ke7 {[%clk 0:00:01.7]} 86. Kd5
{[%clk 0:00:03.2]} 86... Ke8 {[%clk 0:00:01.7]} 87. Kd6 {[%clk 0:00:03.8]} 87...
Kd8 {[%clk 0:00:02.2]} 88. e7+ {[%clk 0:00:04.2]} 88... Ke8 {[%clk 0:00:02.9]}
89. Ke6 {[%clk 0:00:04.9]} 89... g5 {[%clk 0:00:01.8]} 90. hxg6 {[%clk
0:00:05.8]} 90... h5 {[%clk 0:00:01.3]} 91. g7 {[%clk 0:00:06.7]} 1-0

[Event "Early-Titled-Tuesday-Blitz-October-24-2023"]
[Site "Chess.com"]
[Date "2023.10.24"]
[Round "6"]
[White "NMJeevanK"]
[Black "c63_amg"]
[Result "1/2-1/2"]
[WhiteElo "2605"]
[BlackElo "2814"]
[TimeControl "180+1"]
[EndTime "9:07:23 PDT"]
[Termination "Game drawn by 50-move rule"]

1. e4 {[%clk 0:03:00.9]} 1... c6 {[%clk 0:02:49.4]} 2. d4 {[%clk 0:03:00.9]}
2... d5 {[%clk 0:02:50.3]} 3. exd5 {[%clk 0:03:01.5]} 3... cxd5 {[%clk
0:02:50.2]} 4. Bd3 {[%clk 0:03:02.2]} 4... Nc6 {[%clk 0:02:50.1]} 5. c3 {[%clk
0:03:02.4]} 5... Nf6 {[%clk 0:02:51]} 6. Bf4 {[%clk 0:02:59.4]} 6... Bg4 {[%clk
0:02:49.9]} 7. Qb3 {[%clk 0:02:59.5]} 7... Qd7 {[%clk 0:02:49]} 8. Nd2 {[%clk
0:02:59.2]} 8... e6 {[%clk 0:02:49]} 9. Ngf3 {[%clk 0:02:59.5]} 9... Bxf3 {[%clk
0:02:47.9]} 10. Nxf3 {[%clk 0:03:00.4]} 10... Bd6 {[%clk 0:02:48.1]} 11. Bxd6
{[%clk 0:02:58.4]} 11... Qxd6 {[%clk 0:02:48.5]} 12. O-O {[%clk 0:02:58.9]}
12... O-O {[%clk 0:02:48.3]} 13. Rfe1 {[%clk 0:02:57.4]} 13... Qc7 {[%clk
0:02:46.7]} 14. Qd1 {[%clk 0:02:52.7]} 14... a6 {[%clk 0:02:41.1]} 15. a4 {[%clk
0:02:52.6]} 15... Rfe8 {[%clk 0:02:40.3]} 16. Ne5 {[%clk 0:02:51.6]} 16... Nxe5
{[%clk 0:02:36.7]} 17. Rxe5 {[%clk 0:02:42.4]} 17... Nd7 {[%clk 0:02:29.1]} 18.
Rh5 {[%clk 0:02:33]} 18... g6 {[%clk 0:02:27.5]} 19. Rh3 {[%clk 0:02:28]} 19...
e5 {[%clk 0:02:22.2]} 20. dxe5 {[%clk 0:02:27.2]} 20... Rxe5 {[%clk 0:02:08.5]}
21. Bf1 {[%clk 0:02:23.4]} 21... Rae8 {[%clk 0:02:07.7]} 22. Qd2 {[%clk
0:02:09.7]} 22... Nf6 {[%clk 0:01:49.6]} 23. Rd1 {[%clk 0:02:03.2]} 23... Qb6
{[%clk 0:01:41.5]} 24. Rf3 {[%clk 0:01:50]} 24... Kg7 {[%clk 0:01:35.9]} 25. b4
{[%clk 0:01:43.8]} 25... Ne4 {[%clk 0:01:07.9]} 26. Qb2 {[%clk 0:01:29.3]} 26...
Kg8 {[%clk 0:01:02.4]} 27. c4 {[%clk 0:01:17]} 27... dxc4 {[%clk 0:00:53.7]} 28.
Bxc4 {[%clk 0:01:17.9]} 28... Ng5 {[%clk 0:00:49.8]} 29. Rc3 {[%clk 0:00:54.5]}
29... a5 {[%clk 0:00:33.8]} 30. b5 {[%clk 0:00:49.1]} 30... Qf6 {[%clk
0:00:30.9]} 31. Bf1 {[%clk 0:00:44.3]} 31... Rc5 {[%clk 0:00:25.9]} 32. Rc2
{[%clk 0:00:35.6]} 32... Qxb2 {[%clk 0:00:22.5]} 33. Rxb2 {[%clk 0:00:36.5]}
33... Re7 {[%clk 0:00:22.9]} 34. f3 {[%clk 0:00:34.4]} 34... Ne6 {[%clk
0:00:21.6]} 35. Kf2 {[%clk 0:00:32.7]} 35... Rec7 {[%clk 0:00:21.6]} 36. Bd3
{[%clk 0:00:29.5]} 36... Rd5 {[%clk 0:00:19.1]} 37. Be2 {[%clk 0:00:24.9]} 37...
Rxd1 {[%clk 0:00:17.6]} 38. Bxd1 {[%clk 0:00:25.8]} 38... Rd7 {[%clk 0:00:16.8]}
39. Ke1 {[%clk 0:00:21.4]} 39... Rd4 {[%clk 0:00:17.3]} 40. Rd2 {[%clk
0:00:20.4]} 40... Rxd2 {[%clk 0:00:16.4]} 41. Kxd2 {[%clk 0:00:20.7]} 41... Kf8
{[%clk 0:00:17.3]} 42. Kd3 {[%clk 0:00:20.5]} 42... Ke7 {[%clk 0:00:17.9]} 43.
Kc4 {[%clk 0:00:20.8]} 43... Kd6 {[%clk 0:00:18.3]} 44. g3 {[%clk 0:00:13.9]}
44... Nc5 {[%clk 0:00:17.3]} 45. Kd4 {[%clk 0:00:10.8]} 45... b6 {[%clk
0:00:17.5]} 46. Bc2 {[%clk 0:00:09.3]} 46... h6 {[%clk 0:00:15.6]} 47. h4 {[%clk
0:00:07.2]} 47... Ne6+ {[%clk 0:00:14.8]} 48. Ke4 {[%clk 0:00:07]} 48... f5+
{[%clk 0:00:13.1]} 49. Ke3 {[%clk 0:00:05.8]} 49... Ke5 {[%clk 0:00:11.1]} 50.
f4+ {[%clk 0:00:05.3]} 50... Kd6 {[%clk 0:00:11.5]} 51. h5 {[%clk 0:00:03.9]}
51... gxh5 {[%clk 0:00:08.5]} 52. Bxf5 {[%clk 0:00:04.5]} 52... Nc5 {[%clk
0:00:09.3]} 53. Bc2 {[%clk 0:00:04.7]} 53... Kd5 {[%clk 0:00:09.9]} 54. f5
{[%clk 0:00:04.7]} 54... Ke5 {[%clk 0:00:10.2]} 55. Kf2 {[%clk 0:00:03.8]} 55...
Nd7 {[%clk 0:00:09.7]} 56. Kf3 {[%clk 0:00:03.7]} 56... Nf6 {[%clk 0:00:09.9]}
57. Bd3 {[%clk 0:00:04.2]} 57... Nd5 {[%clk 0:00:09.8]} 58. Bb1 {[%clk
0:00:03.6]} 58... Ne7 {[%clk 0:00:08.4]} 59. g4 {[%clk 0:00:02.8]} 59... hxg4+
{[%clk 0:00:07.2]} 60. Kxg4 {[%clk 0:00:03.7]} 60... h5+ {[%clk 0:00:07.9]} 61.
Kg5 {[%clk 0:00:03.2]} 61... Nd5 {[%clk 0:00:04.6]} 62. Kxh5 {[%clk 0:00:01.9]}
62... Kf6 {[%clk 0:00:05.2]} 63. Kg4 {[%clk 0:00:02.3]} 63... Nc3 {[%clk
0:00:06]} 64. Bc2 {[%clk 0:00:02.3]} 64... Nd5 {[%clk 0:00:06.9]} 65. Kf3 {[%clk
0:00:02.6]} 65... Ke5 {[%clk 0:00:06.4]} 66. Bb3 {[%clk 0:00:03.2]} 66... Nc3
{[%clk 0:00:05.6]} 67. Ke3 {[%clk 0:00:03.1]} 67... Kxf5 {[%clk 0:00:05.6]} 68.
Kd3 {[%clk 0:00:04]} 68... Nb1 {[%clk 0:00:04.7]} 69. Kc2 {[%clk 0:00:04]} 69...
Na3+ {[%clk 0:00:04.4]} 70. Kb2 {[%clk 0:00:04.7]} 70... Nxb5 {[%clk 0:00:03.9]}
71. axb5 {[%clk 0:00:04.8]} 71... Ke5 {[%clk 0:00:04.8]} 72. Bc4 {[%clk
0:00:05.3]} 72... Kd4 {[%clk 0:00:05.3]} 73. Bf1 {[%clk 0:00:06.2]} 73... Kc5
{[%clk 0:00:05.8]} 74. Kb3 {[%clk 0:00:06.7]} 74... Kd4 {[%clk 0:00:06.1]} 75.
Ka4 {[%clk 0:00:06.9]} 75... Kc5 {[%clk 0:00:06.3]} 76. Bh3 {[%clk 0:00:07.4]}
76... Kd4 {[%clk 0:00:06.9]} 77. Bd7 {[%clk 0:00:08.1]} 77... Kc3 {[%clk
0:00:07.4]} 78. Bc6 {[%clk 0:00:09]} 78... Kc4 {[%clk 0:00:07.8]} 79. Ka3 {[%clk
0:00:08.7]} 79... Kc3 {[%clk 0:00:08.7]} 80. Ka2 {[%clk 0:00:09]} 80... Kc4
{[%clk 0:00:09.3]} 81. Ka3 {[%clk 0:00:09.9]} 81... Kc3 {[%clk 0:00:09.8]} 82.
Ka4 {[%clk 0:00:10.8]} 82... Kc4 {[%clk 0:00:10.4]} 83. Bg2 {[%clk 0:00:11.4]}
83... Kc3 {[%clk 0:00:11.3]} 84. Bf1 {[%clk 0:00:12.1]} 84... Kd4 {[%clk
0:00:11.5]} 85. Be2 {[%clk 0:00:12.5]} 85... Kc3 {[%clk 0:00:12]} 86. Ka3 {[%clk
0:00:12.9]} 86... Kd4 {[%clk 0:00:12.1]} 87. Bf1 {[%clk 0:00:13.4]} 87... Kc3
{[%clk 0:00:12.6]} 88. Ka2 {[%clk 0:00:13.7]} 88... Kc2 {[%clk 0:00:12.8]} 89.
Bc4 {[%clk 0:00:14.1]} 89... Kc3 {[%clk 0:00:13.7]} 90. Be2 {[%clk 0:00:14.4]}
90... Kc2 {[%clk 0:00:13.9]} 91. Ka3 {[%clk 0:00:15]} 91... Kc3 {[%clk
0:00:14.8]} 92. Ka4 {[%clk 0:00:15.4]} 92... Kc2 {[%clk 0:00:15.2]} 93. Bc4
{[%clk 0:00:15.9]} 93... Kc3 {[%clk 0:00:16.1]} 94. Bb3 {[%clk 0:00:16.5]} 94...
Kd4 {[%clk 0:00:13.6]} 95. Bd1 {[%clk 0:00:15.6]} 95... Kc3 {[%clk 0:00:14.5]}
96. Ka3 {[%clk 0:00:15.6]} 96... Kc4 {[%clk 0:00:14.9]} 97. Be2+ {[%clk
0:00:12.5]} 97... Kc3 {[%clk 0:00:15.8]} 98. Ka2 {[%clk 0:00:12.2]} 98... Kc2
{[%clk 0:00:16.3]} 99. Bf1 {[%clk 0:00:11.9]} 99... Kc3 {[%clk 0:00:17.2]} 100.
Bh3 {[%clk 0:00:12]} 100... Kc4 {[%clk 0:00:17.3]} 101. Bd7 {[%clk 0:00:12.9]}
101... Kc3 {[%clk 0:00:18.1]} 102. Kb1 {[%clk 0:00:13]} 102... Kb4 {[%clk
0:00:15.7]} 103. Kb2 {[%clk 0:00:13.2]} 103... Kc4 {[%clk 0:00:16.1]} 104. Kc2
{[%clk 0:00:11.3]} 104... Kb4 {[%clk 0:00:17]} 105. Kb2 {[%clk 0:00:10.9]}
105... Kc4 {[%clk 0:00:17.6]} 106. Ka3 {[%clk 0:00:11.4]} 106... Kc3 {[%clk
0:00:18]} 107. Ka4 {[%clk 0:00:11.6]} 107... Kc4 {[%clk 0:00:18.9]} 108. Be6+
{[%clk 0:00:11.8]} 108... Kc3 {[%clk 0:00:19.8]} 109. Bd5 {[%clk 0:00:12.2]}
109... Kd4 {[%clk 0:00:20.3]} 110. Bc6 {[%clk 0:00:12]} 110... Kc3 {[%clk
0:00:21.2]} 111. Bg2 {[%clk 0:00:12.5]} 111... Kc4 {[%clk 0:00:21.7]} 112. Bf1+
{[%clk 0:00:13.4]} 112... Kc3 {[%clk 0:00:22.6]} 113. Be2 {[%clk 0:00:13.7]}
113... Kd4 {[%clk 0:00:23]} 114. Kb3 {[%clk 0:00:14]} 114... Ke3 {[%clk
0:00:22.2]} 115. Bf1 {[%clk 0:00:14]} 115... Kd4 {[%clk 0:00:23.1]} 116. Kc2
{[%clk 0:00:13.9]} 116... Kc5 {[%clk 0:00:20.5]} 117. Kc3 {[%clk 0:00:14.3]}
117... Kd5 {[%clk 0:00:21.4]} 118. Bc4+ {[%clk 0:00:12.7]} 118... Kc5 {[%clk
0:00:22.3]} 119. Bd3 {[%clk 0:00:13.2]} 119... Kd5 {[%clk 0:00:22.6]} 120. Bc2
{[%clk 0:00:13.2]} 120... Kc5 {[%clk 0:00:22.7]} 121. Ba4 {[%clk 0:00:13.9]}
1/2-1/2

[Event "Early-Titled-Tuesday-Blitz-October-24-2023"]
[Site "Chess.com"]
[Date "2023.10.24"]
[Round "7"]
[White "MKlose11"]
[Black "esrosenberg"]
[Result "1-0"]
[WhiteElo "2629"]
[BlackElo "2458"]
[TimeControl "180+1"]
[EndTime "9:10:47 PDT"]
[Termination "MKlose11 won by resignation"]

1. e4 {[%clk 0:03:00.9]} 1... e5 {[%clk 0:03:00]} 2. Nf3 {[%clk 0:03:00.1]} 2...
Nc6 {[%clk 0:03:00.6]} 3. d4 {[%clk 0:03:01]} 3... exd4 {[%clk 0:03:00.8]} 4.
Bc4 {[%clk 0:03:01.1]} 4... Nf6 {[%clk 0:03:00.9]} 5. O-O {[%clk 0:03:01]} 5...
Nxe4 {[%clk 0:03:01.1]} 6. Re1 {[%clk 0:03:01.3]} 6... d5 {[%clk 0:03:01.8]} 7.
Bxd5 {[%clk 0:03:01.7]} 7... Qxd5 {[%clk 0:03:02.6]} 8. Nc3 {[%clk 0:03:02.2]}
8... Qd7 {[%clk 0:03:03.2]} 9. Rxe4+ {[%clk 0:02:59.9]} 9... Be7 {[%clk
0:02:57.8]} 10. Nxd4 {[%clk 0:02:59.6]} 10... O-O {[%clk 0:02:53.8]} 11. Nxc6
{[%clk 0:02:58.4]} 11... Qxc6 {[%clk 0:02:39.8]} 12. Rxe7 {[%clk 0:02:57]} 12...
Be6 {[%clk 0:02:40.5]} 13. Bf4 {[%clk 0:02:53.7]} 13... Rfd8 {[%clk 0:02:36.9]}
14. Qf3 {[%clk 0:02:49.6]} 14... Qb6 {[%clk 0:02:27.6]} 15. b3 {[%clk
0:02:39.6]} 15... Rac8 {[%clk 0:02:25.3]} 16. Qg3 {[%clk 0:02:36]} 16... Bf5
{[%clk 0:01:43.3]} 17. Bxc7 {[%clk 0:02:28]} 1-0

[Event "Early-Titled-Tuesday-Blitz-October-24-2023"]
[Site "Chess.com"]
[Date "2023.10.24"]
[Round "7"]
[White "Thunderbolt135"]
[Black "FREDERICKtheMATE"]
[Result "1-0"]
[WhiteElo "2733"]
[BlackElo "2588"]
[TimeControl "180+1"]
[EndTime "9:10:53 PDT"]
[Termination "Thunderbolt135 won by checkmate"]

1. g3 {[%clk 0:03:00.9]} 1... c6 {[%clk 0:03:00.1]} 2. Bg2 {[%clk 0:03:01.8]}
2... d5 {[%clk 0:03:01]} 3. Nf3 {[%clk 0:03:01.4]} 3... Nf6 {[%clk 0:03:01.5]}
4. O-O {[%clk 0:03:02]} 4... g6 {[%clk 0:03:01]} 5. b3 {[%clk 0:03:01.6]} 5...
Bg7 {[%clk 0:03:01.5]} 6. Bb2 {[%clk 0:03:02.5]} 6... O-O {[%clk 0:03:02]} 7. c4
{[%clk 0:03:03.2]} 7... Nbd7 {[%clk 0:03:02.3]} 8. d3 {[%clk 0:03:03]} 8... Re8
{[%clk 0:03:01.4]} 9. Nc3 {[%clk 0:02:59.6]} 9... e5 {[%clk 0:03:00.4]} 10. cxd5
{[%clk 0:02:59.5]} 10... cxd5 {[%clk 0:03:01.3]} 11. Nb5 {[%clk 0:02:59.9]}
11... a6 {[%clk 0:02:58.2]} 12. Nd6 {[%clk 0:02:59.6]} 12... Re6 {[%clk
0:02:57.7]} 13. Nxf7 {[%clk 0:02:55.5]} 13... Kxf7 {[%clk 0:02:55.4]} 14. Ng5+
{[%clk 0:02:55.9]} 14... Ke7 {[%clk 0:02:55.2]} 15. Ba3+ {[%clk 0:02:56.5]}
15... Ke8 {[%clk 0:02:47.1]} 16. Nxe6 {[%clk 0:02:56.5]} 16... Qa5 {[%clk
0:02:47.3]} 17. Nxg7+ {[%clk 0:02:54.2]} 17... Kf7 {[%clk 0:02:46.7]} 18. Bb2
{[%clk 0:02:51.9]} 18... Kxg7 {[%clk 0:02:46.3]} 19. f4 {[%clk 0:02:52.6]} 19...
d4 {[%clk 0:02:43.2]} 20. fxe5 {[%clk 0:02:50.4]} 20... Qxe5 {[%clk 0:02:44.1]}
21. Qd2 {[%clk 0:02:48.9]} 21... Nc5 {[%clk 0:02:40.3]} 22. Rac1 {[%clk
0:02:45]} 22... Ne6 {[%clk 0:02:35.1]} 23. e3 {[%clk 0:02:27.3]} 23... Nd5
{[%clk 0:02:18.4]} 24. exd4 {[%clk 0:02:01.4]} 24... Nxd4 {[%clk 0:02:19.3]} 25.
Qf2 {[%clk 0:01:55.3]} 25... Ne3 {[%clk 0:02:14.6]} 26. Qf8# {[%clk 0:01:53.6]}
1-0

[Event "Early-Titled-Tuesday-Blitz-October-24-2023"]
[Site "Chess.com"]
[Date "2023.10.24"]
[Round "7"]
[White "EdmundPlayer"]
[Black "Alenzer"]
[Result "1-0"]
[WhiteElo "2198"]
[BlackElo "2059"]
[TimeControl "180+1"]
[EndTime "9:11:00 PDT"]
[Termination "EdmundPlayer won by resignation"]

1. Nc3 {[%clk 0:03:00.9]} 1... d5 {[%clk 0:01:57.6]} 2. e4 {[%clk 0:02:58]} 2...
d4 {[%clk 0:01:57.2]} 3. Nce2 {[%clk 0:02:58]} 3... c5 {[%clk 0:01:57.6]} 4. Ng3
{[%clk 0:02:57.8]} 4... Nc6 {[%clk 0:01:58]} 5. Bc4 {[%clk 0:02:57.8]} 5... e6
{[%clk 0:01:57.3]} 6. d3 {[%clk 0:02:55.3]} 6... Nf6 {[%clk 0:01:57.4]} 7. f4
{[%clk 0:02:52]} 7... Be7 {[%clk 0:01:57]} 8. Nf3 {[%clk 0:02:52.1]} 8... a6
{[%clk 0:01:56.7]} 9. a4 {[%clk 0:02:51.4]} 9... b6 {[%clk 0:01:55.3]} 10. O-O
{[%clk 0:02:51.3]} 10... Bb7 {[%clk 0:01:55.4]} 11. f5 {[%clk 0:02:51.2]} 11...
e5 {[%clk 0:01:50.2]} 12. Nh1 {[%clk 0:02:33.1]} 12... Na5 {[%clk 0:01:42.7]}
13. Ba2 {[%clk 0:02:32.1]} 13... Qd7 {[%clk 0:01:31.6]} 14. Nxe5 {[%clk
0:02:31.9]} 14... Qc7 {[%clk 0:01:27.5]} 15. Nxf7 {[%clk 0:02:25.1]} 15... O-O
{[%clk 0:01:26.4]} 16. Bf4 {[%clk 0:02:23.2]} 1-0

[Event "Early-Titled-Tuesday-Blitz-October-24-2023"]
[Site "Chess.com"]
[Date "2023.10.24"]
[Round "7"]
[White "GHANDEEVAM2003"]
[Black "Iball95"]
[Result "1-0"]
[WhiteElo "3034"]
[BlackElo "2853"]
[TimeControl "180+1"]
[EndTime "9:11:50 PDT"]
[Termination "GHANDEEVAM2003 won by resignation"]

1. Nf3 {[%clk 0:03:00.9]} 1... d5 {[%clk 0:02:59.5]} 2. e3 {[%clk 0:03:00.3]}
2... Nf6 {[%clk 0:02:57.9]} 3. c4 {[%clk 0:03:00.7]} 3... e6 {[%clk 0:02:57.5]}
4. Nc3 {[%clk 0:03:00]} 4... c5 {[%clk 0:02:55.3]} 5. cxd5 {[%clk 0:02:56.5]}
5... exd5 {[%clk 0:02:56.2]} 6. d4 {[%clk 0:02:56]} 6... Nc6 {[%clk 0:02:54.5]}
7. Bb5 {[%clk 0:02:55.3]} 7... cxd4 {[%clk 0:02:53.9]} 8. exd4 {[%clk
0:02:54.1]} 8... Bd6 {[%clk 0:02:48.9]} 9. O-O {[%clk 0:02:52.2]} 9... O-O
{[%clk 0:02:49.2]} 10. h3 {[%clk 0:02:50.8]} 10... h6 {[%clk 0:02:48.9]} 11. Re1
{[%clk 0:02:50]} 11... Bf5 {[%clk 0:02:44.1]} 12. Ne5 {[%clk 0:02:47]} 12... Rc8
{[%clk 0:02:42.1]} 13. Bf4 {[%clk 0:02:43]} 13... Re8 {[%clk 0:02:17.2]} 14. Qa4
{[%clk 0:02:36.5]} 14... Qb6 {[%clk 0:02:01.7]} 15. Re3 {[%clk 0:01:54]} 15...
Nxd4 {[%clk 0:01:50.1]} 16. Bxe8 {[%clk 0:01:52.8]} 16... Rxe8 {[%clk
0:01:41.9]} 17. Nxd5 {[%clk 0:01:48.6]} 17... Nxd5 {[%clk 0:01:12.3]} 18. Qxe8+
{[%clk 0:01:48.1]} 18... Bf8 {[%clk 0:01:12.8]} 19. Qxf7+ {[%clk 0:01:46.7]} 1-0

[Event "Early-Titled-Tuesday-Blitz-October-24-2023"]
[Site "Chess.com"]
[Date "2023.10.24"]
[Round "7"]
[White "fen_fire"]
[Black "rocket10jan"]
[Result "1-0"]
[WhiteElo "2539"]
[BlackElo "2385"]
[TimeControl "180+1"]
[EndTime "9:12:03 PDT"]
[Termination "fen_fire won by resignation"]

1. d4 {[%clk 0:02:42]} 1... d5 {[%clk 0:02:59.2]} 2. Nf3 {[%clk 0:02:42.6]} 2...
e6 {[%clk 0:02:59.6]} 3. e3 {[%clk 0:02:42.7]} 3... Nf6 {[%clk 0:03:00]} 4. Bd3
{[%clk 0:02:43.3]} 4... c5 {[%clk 0:03:00.4]} 5. b3 {[%clk 0:02:41.6]} 5... cxd4
{[%clk 0:02:54.8]} 6. exd4 {[%clk 0:02:41.4]} 6... Nc6 {[%clk 0:02:54.6]} 7. a3
{[%clk 0:02:39.8]} 7... Bd6 {[%clk 0:02:52.1]} 8. O-O {[%clk 0:02:39.2]} 8...
O-O {[%clk 0:02:52.3]} 9. Bb2 {[%clk 0:02:39.8]} 9... b6 {[%clk 0:02:42.3]} 10.
Nbd2 {[%clk 0:02:39.2]} 10... a5 {[%clk 0:02:42.2]} 11. Qe2 {[%clk 0:02:38.9]}
11... Qc7 {[%clk 0:02:39]} 12. Ne5 {[%clk 0:02:38.4]} 12... Bb7 {[%clk
0:02:26.5]} 13. f4 {[%clk 0:02:35.7]} 13... Nd7 {[%clk 0:02:16.4]} 14. Rf3
{[%clk 0:02:32.4]} 14... g6 {[%clk 0:02:09]} 15. Rh3 {[%clk 0:02:28]} 15... Rae8
{[%clk 0:02:07.2]} 16. Rf1 {[%clk 0:02:19]} 16... Re7 {[%clk 0:01:50.2]} 17. Qg4
{[%clk 0:02:15.8]} 17... f5 {[%clk 0:01:37.6]} 18. Qh4 {[%clk 0:02:12.1]} 18...
Rg7 {[%clk 0:01:33.5]} 19. Ndf3 {[%clk 0:02:08.7]} 19... Nf6 {[%clk 0:01:29.5]}
20. Ng5 {[%clk 0:02:08.7]} 20... Bc8 {[%clk 0:01:20.9]} 21. c4 {[%clk
0:02:05.2]} 21... Ne4 {[%clk 0:01:17.7]} 22. Bxe4 {[%clk 0:01:50.6]} 22... dxe4
{[%clk 0:01:13.7]} 23. Nxc6 {[%clk 0:01:50.2]} 23... Qxc6 {[%clk 0:01:14.2]} 24.
Nxh7 {[%clk 0:01:50.2]} 24... Rff7 {[%clk 0:01:07.8]} 25. Ng5 {[%clk 0:01:48.7]}
1-0